bitfinex/quotes_SOLUSD_20260202
["timestamp","ask_amount","ask_price","bid_price","bid_amount"]
[1770040181103,4.27527085,103.4,103.36,0.5]
[1770040181303,7.87688832,103.4,103.36,0.5]
[1770040181708,3.60161747,103.39,103.36,0.5]
[1770040185506,3.60161747,103.4,103.36,0.5]
[1770040185707,10.14307124,103.41,103.37,0.5]
[1770040186311,3.60161747,103.4,103.37,0.5]
[1770040186511,10.14307124,103.41,103.37,0.5]
[1770040194732,6.54145377,103.41,103.37,0.5]
[1770040194934,10.14307124,103.41,103.37,0.5]
[1770040197415,6.54145377,103.41,103.37,0.5]
[1770040197734,10.14307124,103.41,103.37,0.5]
[1770040199336,6.54145377,103.41,103.39,0.5]
[1770040201635,6.54145377,103.41,103.38,0.5]
[1770040203448,6.54145377,103.41,103.39,0.5]
[1770040204722,0.48960941,103.44,103.4,3.60161747]
[1770040204927,0.48960941,103.44,103.41,3.60161747]
[1770040206146,0.48960941,103.44,103.42,3.60161747]
[1770040206327,0.48960941,103.44,103.41,3.60161747]
[1770040206728,0.48960941,103.44,103.4,3.60161747]
[1770040207841,0.7,103.45,103.39,0.28432314]
[1770040208033,0.7,103.45,103.42,3.60161747]
[1770040208226,0.7,103.45,103.41,3.60161747]
[1770040208646,0.7,103.45,103.42,3.60161747]
[1770040209533,0.7,103.45,103.41,3.60161747]
[1770040210851,0.7,103.45,103.42,3.60161747]
[1770040211746,0.2,103.45,103.43,3.60161747]
[1770040211934,0.2,103.45,103.42,3.60161747]
[1770040212954,0.7,103.45,103.42,3.60161747]
[1770040215851,0.5,103.44,103.41,3.60161747]
[1770040217354,0.5,103.44,103.39,60.58432314]
[1770040217554,3.60161747,103.42,103.37,3.60161747]
[1770040217749,0.5,103.41,103.37,3.60161747]
[1770040217949,4.10161747,103.41,103.37,3.60161747]
[1770040218248,0.5,103.39,103.35,3.60161747]
[1770040218454,0.5,103.39,103.36,3.60161747]
[1770040218656,0.5,103.4,103.37,3.60161747]
[1770040218839,0.5,103.4,103.38,3.60161747]
[1770040219657,0.5,103.4,103.3,27.90127569]
[1770040219658,0.5,103.39,103.3,27.90127569]
[1770040219961,0.5,103.37,103.34,3.60161747]
[1770040220549,0.5,103.39,103.35,3.60161747]
[1770040220749,0.5,103.39,103.36,3.60161747]
[1770040220942,0.5,103.41,103.37,3.60161747]
[1770040222335,0.5,103.41,103.37,3.60060922]
[1770040222835,0.5,103.37,103.32,3.60060922]
[1770040223039,0.5,103.36,103.32,3.60060922]
[1770040223239,0.5,103.35,103.3,0.1]
[1770040223464,0.5,103.35,103.31,3.60060922]
[1770040223952,0.5,103.36,103.33,3.60060922]
[1770040224151,0.5,103.37,103.33,3.60060922]
[1770040224650,4.10060922,103.36,103.32,3.60060922]
[1770040224855,0.5,103.35,103.31,3.60060922]
[1770040225153,0.5,103.35,103.32,3.60060922]
[1770040225562,0.5,103.36,103.33,3.60060922]
[1770040225938,0.5,103.36,103.32,3.60060922]
[1770040229255,4.10060922,103.38,103.34,3.60060922]
[1770040229562,0.5,103.37,103.34,3.60060922]
[1770040229864,0.5,103.37,103.34,63.90060922]
[1770040230958,0.5,103.38,103.35,3.60060922]
[1770040231145,0.5,103.38,103.35,63.90060922]
[1770040232961,0.5,103.38,103.36,3.60060922]
[1770040233260,0.5,103.38,103.34,0.28432314]
[1770040233466,0.5,103.38,103.35,3.60060922]
[1770040235062,0.5,103.38,103.34,3.60060922]
[1770040235644,4.10060922,103.39,103.34,3.60060922]
[1770040235862,0.5,103.39,103.35,3.60060922]
[1770040238649,0.5,103.39,103.35,63.90060922]
[1770040238866,0.5,103.38,103.35,63.90060922]
[1770040241154,0.5,103.41,103.37,3.60060922]
[1770040241453,0.5,103.39,103.35,90.78060922]
[1770040242369,0.5,103.38,103.35,87.18]
[1770040243067,0.5,103.37,103.35,60.3]
[1770040243454,7.87588007,103.4,103.35,60.3]
[1770040243655,0.5,103.38,103.35,63.90060922]
[1770040243855,0.5,103.38,103.35,60.3]
[1770040244078,0.5,103.37,103.35,60.3]
[1770040244574,0.5,103.37,103.34,60.3]
[1770040244958,0.5,103.37,103.34,63.90060922]
[1770040246271,0.5,103.37,103.34,60.3]
[1770040246583,0.5,103.37,103.34,63.90060922]
[1770040251875,0.5,103.39,103.34,60.3]
[1770040252070,0.5,103.4,103.36,3.60060922]
[1770040253387,0.5,103.4,103.36,63.90060922]
[1770040254565,0.5,103.39,103.36,63.90060922]
[1770040256879,0.5,103.39,103.37,3.60060922]
[1770040257477,0.5,103.39,103.36,63.90060922]
[1770040258596,0.5,103.39,103.36,60.3]
[1770040258891,3.60060922,103.39,103.36,60.3]
[1770040259079,0.5,103.37,103.36,60.3]
[1770040259282,0.5,103.37,103.35,26.88]
[1770040260184,0.5,103.37,103.34,3.60060922]
[1770040262996,0.5,103.35,103.32,3.60060922]
[1770040263174,0.5,103.35,103.31,30.48060922]
[1770040263374,0.5,103.35,103.32,3.60060922]
[1770040265092,0.5,103.35,103.33,3.60060922]
[1770040265490,0.5,103.35,103.31,26.88]
[1770040265796,0.5,103.36,103.34,3.60060922]
[1770040265976,0.5,103.36,103.33,3.60060922]
[1770040266392,0.5,103.36,103.32,3.60060922]
[1770040266680,0.5,103.35,103.31,30.48060922]
[1770040267398,0.5,103.34,103.31,30.48060922]
[1770040268199,0.5,103.33,103.31,60.3]
[1770040268493,0.5,103.32,103.3,0.1]
[1770040268682,0.5,103.31,103.28,46.6940568]
[1770040268874,0.5,103.31,103.28,16.19344758]
[1770040270399,0.5,103.31,103.28,19.7940568]
[1770040270589,0.5,103.31,103.28,16.19344758]
[1770040270996,0.5,103.31,103.28,19.7940568]
[1770040272002,0.5,103.33,103.3,3.60060922]
[1770040275099,0.5,103.33,103.29,3.60060922]
[1770040276584,0.5,103.33,103.3,3.60060922]
[1770040278907,0.5,103.33,103.29,3.60060922]
[1770040279296,0.5,103.32,103.29,3.60060922]
[1770040279598,0.5,103.3,103.28,76.49344758]
[1770040279907,0.5,103.3,103.28,16.19344758]
[1770040281487,0.5,103.31,103.28,16.19344758]
[1770040281685,0.5,103.31,103.28,19.7940568]
[1770040281986,0.5,103.32,103.29,3.60060922]
[1770040282403,0.5,103.32,103.28,16.19344758]
[1770040282592,0.5,103.32,103.28,19.79993198]
[1770040284713,0.5,103.32,103.29,3.6064844]
[1770040284891,0.5,103.32,103.28,19.79993198]
[1770040285707,0.5,103.32,103.28,80.09993198]
[1770040286099,0.5,103.32,103.29,3.6064844]
[1770040286894,0.5,103.32,103.28,80.09993198]
[1770040288703,0.5,103.31,103.28,80.09993198]
[1770040289593,0.5,103.31,103.28,76.49344758]
[1770040290395,0.5,103.3,103.28,76.49344758]
[1770040291625,0.5,103.3,103.28,16.19344758]
[1770040292414,0.5,103.3,103.28,19.79993198]
[1770040293015,0.5,103.3,103.28,16.19344758]
[1770040294306,0.5,103.3,103.28,19.79993198]
[1770040295619,0.5,103.3,103.28,16.19344758]
[1770040296602,0.5,103.31,103.28,19.79993198]
[1770040297113,0.5,103.3,103.28,16.19344758]
[1770040297423,0.5,103.29,103.28,11.98260986]
[1770040297615,0.5,103.29,103.26,0.46830883]
[1770040297813,3.6064844,103.28,103.25,0.1]
[1770040298508,3.6064844,103.27,103.25,0.1]
[1770040299718,3.6064844,103.26,103.25,0.1]
[1770040299906,3.6064844,103.26,103.23,0.1]
[1770040300108,3.6064844,103.26,103.23,0.6]
[1770040300312,3.6064844,103.25,103.23,0.1]
[1770040301215,3.6064844,103.24,103.23,0.1]
[1770040302221,10.58247145,103.25,103.23,0.6]
[1770040302813,10.58247145,103.25,103.23,0.1]
[1770040303119,14.18895585,103.25,103.23,0.1]
[1770040303922,10.58247145,103.25,103.23,0.1]
[1770040305117,14.18895585,103.25,103.23,0.1]
[1770040307022,3.6064844,103.24,103.23,0.1]
[1770040307424,14.18895585,103.25,103.23,0.1]
[1770040308123,3.6064844,103.24,103.23,0.1]
[1770040308321,14.03483585,103.24,103.21,0.1]
[1770040308500,3.6064844,103.23,103.21,0.1]
[1770040310520,14.03483585,103.24,103.21,0.1]
[1770040311614,3.6064844,103.22,103.21,0.1]
[1770040311823,3.6064844,103.23,103.21,0.1]
[1770040314201,14.03483585,103.24,103.21,0.6]
[1770040314425,10.42835145,103.24,103.22,0.5]
[1770040320127,10.42835145,103.24,103.21,0.6]
[1770040320331,14.03483585,103.24,103.21,0.1]
[1770040321241,3.6064844,103.23,103.21,0.1]
[1770040321816,11.82298613,103.23,103.21,0.1]
[1770040323308,3.6064844,103.22,103.21,0.1]
[1770040323626,3.6064844,103.22,103.2,0.1]
[1770040323927,3.6064844,103.21,103.2,0.1]
[1770040324530,3.6064844,103.21,103.19,0.1]
[1770040326231,3.6064844,103.2,103.18,0.1]
[1770040326431,3.6064844,103.19,103.18,0.1]
[1770040326632,3.6064844,103.21,103.18,0.6]
[1770040327135,11.68765795,103.21,103.18,0.6]
[1770040328524,3.6064844,103.2,103.18,0.1]
[1770040328719,3.6064844,103.19,103.18,0.1]
[1770040330020,11.68765795,103.21,103.18,0.6]
[1770040330516,3.6064844,103.2,103.18,0.6]
[1770040331230,11.68765795,103.21,103.18,0.6]
[1770040331630,3.6064844,103.19,103.18,0.1]
[1770040332436,3.6064844,103.19,103.18,0.01538462]
[1770040332817,3.6064844,103.19,103.16,0.6]
[1770040333624,11.68765795,103.19,103.16,0.6]
[1770040334743,8.08117355,103.19,103.16,0.6]
[1770040334940,11.68765795,103.19,103.16,0.6]
[1770040335121,8.08117355,103.19,103.16,0.6]
[1770040336126,8.08117355,103.19,103.17,0.5]
[1770040336419,11.68765795,103.19,103.16,0.6]
[1770040336859,3.6064844,103.17,103.15,0.1]
[1770040337142,3.89080754,103.18,103.15,0.1]
[1770040337326,3.6064844,103.17,103.15,0.1]
[1770040337528,8.08117355,103.19,103.15,0.1]
[1770040337529,11.68765795,103.19,103.15,0.6]
[1770040337724,8.08117355,103.19,103.16,0.5]
[1770040337925,11.68765795,103.19,103.16,0.5]
[1770040338241,8.08117355,103.19,103.16,0.5]
[1770040342125,11.68765795,103.19,103.15,0.6]
[1770040342533,8.08117355,103.19,103.16,4.11669517]
[1770040342727,8.08117355,103.19,103.17,0.5]
[1770040343536,8.08117355,103.19,103.18,0.5]
[1770040344127,0.46429464,103.23,103.19,0.4851535]
[1770040344328,10.54592865,103.22,103.19,0.4851535]
[1770040344747,6.92923348,103.22,103.19,0.4851535]
[1770040344946,6.92923348,103.22,103.19,4.10184867]
[1770040345444,6.46493884,103.22,103.21,0.4851535]
[1770040345948,0.46429464,103.24,103.21,4.10184867]
[1770040346142,0.46429464,103.24,103.21,3.61669517]
[1770040349839,6.67857037,103.26,103.22,3.61669517]
[1770040350048,0.5,103.25,103.22,3.61669517]
[1770040350349,6.17857037,103.26,103.23,3.61669517]
[1770040350541,3.61669517,103.28,103.25,3.61669517]
[1770040350542,0.5,103.28,103.25,3.61669517]
[1770040351046,0.5,103.3,103.26,3.61669517]
[1770040351446,0.5,103.3,103.22,0.28432314]
[1770040351649,0.5,103.28,103.25,3.61669517]
[1770040352352,0.5,103.28,103.24,3.61669517]
[1770040352733,0.5,103.26,103.23,3.61669517]
[1770040352929,0.5,103.26,103.22,3.61669517]
[1770040353129,0.5,103.25,103.21,3.61669517]
[1770040353450,4.11669517,103.25,103.21,3.61669517]
[1770040353950,0.5,103.24,103.21,3.61669517]
[1770040354453,0.5,103.24,103.2,3.61669517]
[1770040355052,0.5,103.25,103.21,3.61669517]
[1770040358164,0.5,103.25,103.22,3.61669517]
[1770040358662,0.5,103.26,103.23,3.61669517]
[1770040359043,0.5,103.26,103.22,3.61669517]
[1770040359243,0.5,103.25,103.21,3.61669517]
[1770040359446,0.5,103.26,103.22,3.61669517]
[1770040360547,0.5,103.26,103.23,3.61669517]
[1770040360751,3.61669517,103.27,103.2,3.61669517]
[1770040360752,0.5,103.27,103.24,3.61669517]
[1770040363571,0.5,103.26,103.22,63.91669517]
[1770040363771,4.11669517,103.26,103.22,63.91669517]
[1770040364975,0.5,103.27,103.23,3.61669517]
[1770040365157,0.5,103.27,103.23,63.91669517]
[1770040365671,4.11669517,103.27,103.23,63.91669517]
[1770040366148,0.5,103.26,103.23,63.91669517]
[1770040366848,0.5,103.26,103.23,60.3]
[1770040368566,4.11669517,103.26,103.23,60.3]
[1770040369150,0.5,103.26,103.23,60.3]
[1770040369358,0.5,103.27,103.23,63.91669517]
[1770040370070,0.5,103.26,103.23,60.3]
[1770040370359,4.11669517,103.26,103.23,60.3]
[1770040370768,4.11669517,103.26,103.22,63.91669517]
[1770040371067,0.5,103.26,103.22,63.91669517]
[1770040371972,0.5,103.26,103.22,60.3]
[1770040372171,0.5,103.26,103.22,63.91669517]
[1770040378069,4.11669517,103.26,103.22,63.91669517]
[1770040381374,0.5,103.26,103.22,63.91669517]
[1770040382060,0.5,103.26,103.23,3.61669517]
[1770040382765,0.5,103.26,103.24,3.61669517]
[1770040383379,0.5,103.27,103.24,3.61669517]
[1770040384177,0.5,103.28,103.25,0.02141553]
[1770040384380,0.5,103.27,103.24,0.02141553]
[1770040384679,4.11669517,103.27,103.24,0.02141553]
[1770040384879,0.5,103.26,103.23,3.6381107]
[1770040385074,0.5,103.26,103.23,0.02141553]
[1770040386677,0.5,103.26,103.23,3.6381107]
[1770040387264,0.5,103.26,103.23,0.02141553]
[1770040388882,0.5,103.26,103.22,3.61669517]
[1770040390989,0.5,103.26,103.23,4.02243957]
[1770040392886,0.5,103.26,103.23,0.4057444]
[1770040396385,0.51070776,103.28,103.25,0.47859108]
[1770040396568,31.19527085,103.3,103.26,0.47859108]
[1770040396569,0.51070776,103.29,103.26,0.47859108]
[1770040396770,0.51070776,103.29,103.25,4.09528625]
[1770040397070,0.51070776,103.29,103.26,4.09528625]
[1770040397484,0.51070776,103.3,103.27,4.09528625]
[1770040397682,0.51070776,103.29,103.26,3.61669517]
[1770040397873,0.51070776,103.29,103.25,4.09528625]
[1770040398184,0.51070776,103.28,103.25,0.47859108]
[1770040398667,0.51070776,103.27,103.24,4.09528625]
[1770040399078,0.51070776,103.28,103.25,0.47859108]
[1770040400890,0.51070776,103.28,103.25,0.02884057]
[1770040401889,4.12740293,103.28,103.25,0.02884057]
[1770040402595,1.02519031,103.25,103.22,3.61669517]
[1770040402972,1.02519031,103.25,103.22,0.74753007]
[1770040403176,4.64188548,103.26,103.23,0.80441658]
[1770040404390,1.02519031,103.25,103.23,0.80441658]
[1770040407791,1.02519031,103.27,103.24,4.58665364]
[1770040408101,1.02519031,103.26,103.23,0.97532478]
[1770040408397,1.02519031,103.26,103.23,4.58665364]
[1770040408699,7.2229097,103.31,103.26,0.97532478]
[1770040409003,7.2229097,103.31,103.28,4.58665364]
[1770040409189,1.02519031,103.3,103.27,0.97532478]
[1770040409501,9.80904825,103.31,103.27,4.58665364]
[1770040409502,7.2229097,103.31,103.27,4.58665364]
[1770040409681,4.63651917,103.29,103.26,0.97532478]
[1770040409881,4.63651917,103.29,103.25,0.97532478]
[1770040409882,1.02519031,103.28,103.25,0.97532478]
[1770040410897,1.02519031,103.28,103.25,4.58665364]
[1770040411190,1.02519031,103.29,103.22,26.92]
[1770040411396,1.02519031,103.28,103.25,0.97532478]
[1770040412178,8.44377022,103.3,103.25,0.97532478]
[1770040412388,4.27527085,103.32,103.26,27.20432314]
[1770040412389,1.02519031,103.32,103.26,27.20432314]
[1770040412589,1.02519031,103.32,103.29,4.58665364]
[1770040412997,1.02519031,103.32,103.3,3.61132886]
[1770040413378,1.02519031,103.32,103.29,4.58665364]
[1770040413592,1.02519031,103.33,103.29,4.58665364]
[1770040414198,1.02519031,103.33,103.3,3.61132886]
[1770040414389,1.22519031,103.34,103.31,4.58665364]
[1770040414699,0.2,103.34,103.31,4.58665364]
[1770040415083,0.2,103.34,103.32,4.58665364]
[1770040415484,0.2,103.34,103.32,3.61132886]
[1770040415695,1.22519031,103.34,103.31,4.58665364]
[1770040416389,1.22519031,103.34,103.3,4.58665364]
[1770040416780,1.22519031,103.34,103.3,0.97532478]
[1770040416988,1.22519031,103.34,103.31,3.61132886]
[1770040418496,1.02519031,103.33,103.3,3.61132886]
[1770040418701,1.02519031,103.33,103.29,4.58665364]
[1770040419407,1.02519031,103.33,103.3,3.61132886]
[1770040419610,6.56461087,103.37,103.33,0.97532478]
[1770040419611,1.02519031,103.35,103.33,0.97532478]
[1770040419790,6.56461087,103.37,103.3,37.49284725]
[1770040419791,6.56461087,103.37,103.34,4.58665364]
[1770040419984,6.56461087,103.37,103.35,3.61132886]
[1770040420184,6.56461087,103.37,103.31,0.97532478]
[1770040420407,10.17593973,103.37,103.32,4.58665364]
[1770040421406,3.61132886,103.36,103.32,4.58665364]
[1770040421904,1.02519031,103.36,103.32,4.58665364]
[1770040422205,3.61132886,103.35,103.3,0.97532478]
[1770040422509,1.02519031,103.33,103.3,3.61132886]
[1770040422708,6.56461087,103.37,103.33,0.97532478]
[1770040422909,0.2,103.38,103.36,4.58665364]
[1770040423089,1.22519031,103.39,103.37,3.61132886]
[1770040423687,0.2,103.39,103.38,3.61132886]
[1770040424089,0.2,103.39,103.37,3.61132886]
[1770040424307,1.22519031,103.39,103.36,3.61132886]
[1770040424495,1.22519031,103.39,103.36,9.00327015]
[1770040425308,1.22519031,103.39,103.37,9.00327015]
[1770040425791,1.22519031,103.39,103.35,0.97532478]
[1770040425997,1.22519031,103.39,103.36,9.00327015]
[1770040426297,1.22519031,103.39,103.37,9.00327015]
[1770040426497,1.22519031,103.39,103.36,9.00327015]
[1770040426794,1.22519031,103.39,103.35,9.97859493]
[1770040427990,1.02519031,103.38,103.34,9.00327015]
[1770040428398,10.02846046,103.36,103.32,9.97859493]
[1770040428598,1.02519031,103.36,103.32,9.97859493]
[1770040429510,1.02519031,103.36,103.32,0.97532478]
[1770040429710,10.55524475,103.36,103.32,9.97859493]
[1770040429895,1.5519746,103.36,103.33,9.00327015]
[1770040431112,1.5519746,103.36,103.32,0.97532478]
[1770040431303,1.5519746,103.36,103.33,10.56272851]
[1770040431917,1.63982376,103.38,103.34,1.60743336]
[1770040432094,1.63982376,103.38,103.35,10.61070351]
[1770040432998,1.63982376,103.38,103.34,10.61070351]
[1770040435096,1.63982376,103.38,103.34,1.60743336]
[1770040435613,1.63982376,103.38,103.34,10.61070351]
[1770040435818,1.63982376,103.37,103.34,10.61070351]
[1770040436695,1.63982376,103.37,103.34,1.60743336]
[1770040436900,1.63982376,103.37,103.33,10.61070351]
[1770040438917,1.63982376,103.36,103.32,10.61070351]
[1770040440524,1.63982376,103.35,103.31,1.60743336]
[1770040440822,1.63982376,103.35,103.32,1.60743336]
[1770040441117,1.63982376,103.35,103.32,10.61070351]
[1770040441522,1.63982376,103.34,103.3,1.60743336]
[1770040441710,1.63982376,103.32,103.29,49.5379589]
[1770040441904,10.64309391,103.34,103.3,1.60743336]
[1770040442103,1.63982376,103.34,103.31,1.60743336]
[1770040442417,1.63982376,103.33,103.3,10.61070351]
[1770040442595,1.63982376,103.33,103.29,47.93052554]
[1770040442596,1.63982376,103.38,103.33,1.60743336]
[1770040442797,1.63982376,103.38,103.35,1.60743336]
[1770040443600,1.63982376,103.38,103.35,10.61070351]
[1770040443807,1.63982376,103.38,103.35,9.00327015]
[1770040444323,0.2,103.39,103.37,10.61070351]
[1770040445103,1.83982376,103.39,103.36,9.00327015]
[1770040445529,0.2,103.39,103.36,10.61070351]
[1770040445823,0.2,103.39,103.37,9.00327015]
[1770040446526,0.2,103.39,103.37,10.61070351]
[1770040446720,0.2,103.39,103.38,10.61070351]
[1770040448018,19.67586452,103.43,103.39,1.60743336]
[1770040448019,8.03714728,103.43,103.39,1.60743336]
[1770040448235,8.03714728,103.43,103.4,10.61070351]
[1770040448607,8.03714728,103.43,103.39,9.00327015]
[1770040448912,8.03714728,103.43,103.39,10.61070351]
[1770040449315,6.39732352,103.43,103.39,10.61070351]
[1770040449513,1.63982376,103.42,103.39,10.61070351]
[1770040450121,8.03714728,103.43,103.41,9.00327015]
[1770040450322,8.03714728,103.43,103.4,10.61070351]
[1770040450521,8.03714728,103.43,103.4,9.00327015]
[1770040451425,8.03714728,103.43,103.4,10.61070351]
[1770040451628,0.2,103.45,103.43,0.28432314]
[1770040451809,0.2,103.46,103.44,9.00327015]
[1770040452120,2.16426394,103.48,103.45,9.00327015]
[1770040452327,2.16426394,103.48,103.46,9.00327015]
[1770040453119,2.16426394,103.48,103.44,0.04524977]
[1770040453318,2.16426394,103.48,103.45,9.00327015]
[1770040453520,2.16426394,103.48,103.46,9.00327015]
[1770040454101,1.63982376,103.46,103.39,1.60743336]
[1770040454313,10.64309391,103.44,103.4,1.60743336]
[1770040454527,1.63982376,103.47,103.4,1.60743336]
[1770040454708,1.63982376,103.44,103.4,10.61070351]
[1770040455026,9.00327015,103.42,103.36,1.60743336]
[1770040455219,10.64309391,103.42,103.38,1.60743336]
[1770040455522,9.00327015,103.4,103.33,9.67688007]
[1770040455739,10.64309391,103.41,103.37,1.60743336]
[1770040455924,1.63982376,103.4,103.36,10.61070351]
[1770040456307,1.63982376,103.41,103.37,1.60743336]
[1770040456505,1.63982376,103.41,103.37,9.00327015]
[1770040456708,10.64309391,103.41,103.37,9.00327015]
[1770040457213,10.64309391,103.41,103.36,10.61070351]
[1770040457625,10.64309391,103.41,103.32,18.68171892]
[1770040457626,10.64309391,103.42,103.37,10.61070351]
[1770040457829,1.63982376,103.42,103.37,1.60743336]
[1770040458026,1.63982376,103.41,103.37,10.61070351]
[1770040458525,10.64309391,103.41,103.37,10.61070351]
[1770040458911,1.63982376,103.41,103.37,10.61070351]
[1770040459112,1.63982376,103.41,103.38,9.00327015]
[1770040459630,1.63982376,103.41,103.37,10.61070351]
[1770040459827,1.63982376,103.4,103.36,1.60743336]
[1770040460027,10.64309391,103.4,103.36,10.61070351]
[1770040460609,1.63982376,103.4,103.37,9.00327015]
[1770040461330,1.63982376,103.4,103.36,10.61070351]
[1770040461528,1.63982376,103.39,103.35,9.00327015]
[1770040461830,1.63982376,103.39,103.35,11.00136768]
[1770040462340,10.81292308,103.38,103.34,11.00136768]
[1770040462632,10.81292308,103.39,103.35,1.99809753]
[1770040462931,10.81292308,103.39,103.3,55.35655497]
[1770040462932,1.80965293,103.4,103.36,11.00136768]
[1770040463435,10.81292308,103.4,103.36,11.00136768]
[1770040464534,1.80965293,103.39,103.35,11.00136768]
[1770040465114,10.81292308,103.39,103.35,11.00136768]
[1770040465537,1.80965293,103.37,103.34,9.00327015]
[1770040465834,1.80965293,103.37,103.33,11.00136768]
[1770040466637,1.80965293,103.37,103.33,11.00640887]
[1770040467821,10.81796427,103.37,103.33,9.00831134]
[1770040468027,1.80965293,103.35,103.31,9.00831134]
[1770040468424,1.80965293,103.34,103.31,9.00831134]
[1770040468626,1.80965293,103.34,103.32,9.00831134]
[1770040469137,1.80965293,103.34,103.33,9.00831134]
[1770040469335,1.80965293,103.34,103.31,9.00831134]
[1770040469717,1.80965293,103.34,103.3,1.99809753]
[1770040470018,1.80965293,103.34,103.31,9.00831134]
[1770040471746,1.80965293,103.34,103.32,9.00831134]
[1770040473136,1.80965293,103.34,103.3,9.00831134]
[1770040473827,1.80965293,103.34,103.31,9.00831134]
[1770040474023,1.80965293,103.36,103.32,9.00831134]
[1770040474348,1.80965293,103.36,103.33,9.00831134]
[1770040474647,1.80965293,103.36,103.34,9.00831134]
[1770040475130,1.80965293,103.36,103.33,9.00831134]
[1770040475833,1.80965293,103.36,103.34,9.00831134]
[1770040480038,1.80965293,103.39,103.35,11.00640887]
[1770040480236,1.80965293,103.39,103.36,9.00831134]
[1770040483456,1.80965293,103.39,103.35,9.00831134]
[1770040483642,1.80965293,103.39,103.36,9.00831134]
[1770040484029,1.97680261,103.38,103.34,9.00831134]
[1770040484338,2.26112575,103.38,103.34,9.00831134]
[1770040484733,1.97680261,103.36,103.32,9.00831134]
[1770040484929,1.97680261,103.36,103.33,9.00831134]
[1770040486053,1.97680261,103.36,103.32,9.00831134]
[1770040487253,1.97680261,103.37,103.35,9.00831134]
[1770040488549,9.00831134,103.4,103.35,9.00831134]
[1770040488756,1.97680261,103.39,103.35,9.00831134]
[1770040489133,1.97680261,103.38,103.34,9.00831134]
[1770040491444,1.97680261,103.38,103.36,9.00831134]
[1770040491647,1.97680261,103.39,103.37,9.00831134]
[1770040491857,1.97680261,103.39,103.38,9.00831134]
[1770040492460,2.03149966,103.4,103.38,9.00831134]
[1770040492646,2.03149966,103.4,103.37,9.00831134]
[1770040493658,2.03149966,103.4,103.38,9.00831134]
[1770040494551,13.28358219,103.43,103.38,9.00831134]
[1770040494552,2.03149966,103.42,103.39,9.00831134]
[1770040494754,2.03149966,103.42,103.4,9.00831134]
[1770040494956,2.03149966,103.43,103.41,9.00831134]
[1770040495156,2.03149966,103.43,103.39,0.29288806]
[1770040495356,2.03149966,103.43,103.4,9.00831134]
[1770040498469,2.03149966,103.43,103.41,9.00831134]
[1770040498774,2.3158228,103.46,103.42,9.00831134]
[1770040498975,9.29263448,103.46,103.41,9.00831134]
[1770040499272,2.03149966,103.45,103.41,9.00831134]
[1770040501974,2.03149966,103.43,103.37,0.25326226]
[1770040502184,2.03149966,103.4,103.36,61.8]
[1770040502355,2.03149966,103.4,103.36,9.00831134]
[1770040502356,2.3158228,103.4,103.36,9.00831134]
[1770040503069,2.03149966,103.4,103.37,9.00831134]
[1770040503974,2.03149966,103.37,103.33,9.00831134]
[1770040504381,2.03149966,103.37,103.34,9.00831134]
[1770040504681,2.03149966,103.37,103.35,9.00831134]
[1770040505172,2.03149966,103.37,103.34,9.00831134]
[1770040505768,6.30677051,103.41,103.36,9.24032815]
[1770040505963,2.03149966,103.41,103.37,9.00831134]
[1770040506361,2.3158228,103.41,103.37,9.00831134]
[1770040506561,2.03149966,103.4,103.37,9.00831134]
[1770040508077,2.03149966,103.4,103.38,9.00831134]
[1770040509274,2.03149966,103.4,103.37,9.00831134]
[1770040510480,2.03149966,103.43,103.39,9.00831134]
[1770040510781,2.03149966,103.43,103.4,9.00831134]
[1770040512276,2.03149966,103.43,103.38,0.20680405]
[1770040512675,2.03149966,103.42,103.39,9.00831134]
[1770040514390,2.03149966,103.44,103.41,9.00831134]
[1770040514689,2.03149966,103.44,103.4,9.00831134]
[1770040515578,2.03149966,103.43,103.39,9.00831134]
[1770040515888,2.03149966,103.43,103.38,0.18300637]
[1770040516200,2.03149966,103.43,103.39,9.00831134]
[1770040517694,2.03149966,103.43,103.4,9.00831134]
[1770040520099,6.30677051,103.46,103.42,9.16885569]
[1770040520284,2.17366123,103.46,103.42,9.00831134]
[1770040520479,2.3158228,103.46,103.42,9.00831134]
[1770040520686,2.03149966,103.45,103.4,0.16054435]
[1770040520885,2.03149966,103.45,103.41,9.00831134]
[1770040521593,1.97680261,103.43,103.38,0.15620555]